fUSD/lending_fUSD_20251120
["ID","MTS","AMOUNT","RATE_DAILY","PERIOD"]
[394464127,1763605831838,-86.99727763,0.00016354,2]
[394464128,1763605832114,-4172.11748749,0.00016354,2]
[394464129,1763605832125,-78897.50422362,0.00016354,2]
[394464132,1763605832143,-17517.29801744,0.00016354,2]
[394464134,1763605832154,-2973.8,0.00016354,2]
[394464136,1763605832165,-4984.195995,0.00016354,2]
[394464138,1763605832185,-2026.636031,0.00016354,2]
[394464139,1763605832211,-1766.21552246,0.00016354,2]
[394464149,1763605837442,-647575.23544536,0.00016354,2]
[394464152,1763605837451,-150.0,0.00016364,2]
[394464155,1763605837460,-514.07519964,0.00016371,2]
[394464157,1763605837469,-500.0,0.00016371,2]
[394464159,1763605837479,-244.16561713,0.00016371,2]
[394464160,1763605837488,-500.0,0.00016371,2]
[394464161,1763605837498,-260.46039511,0.00016371,2]
[394464162,1763605837507,-568.17496064,0.00016371,2]
[394464163,1763605837516,-500.0,0.00016371,2]
[394464164,1763605837525,-500.0,0.00016371,2]
[394464165,1763605837534,-500.0,0.00016371,2]
[394464166,1763605837543,-500.0,0.00016371,2]
[394464167,1763605837552,-500.0,0.00016371,2]
[394464168,1763605837561,-323.81893745,0.00016371,2]
[394464169,1763605837570,-500.0,0.00016371,2]
[394464170,1763605837579,-414.63511225,0.00016371,2]
[394464171,1763605837588,-500.0,0.00016371,2]
[394464172,1763605837598,-500.02129057,0.00016371,2]
[394464173,1763605837607,-160.8601144,0.00016373,2]
[394464174,1763605837616,-501.88515106,0.00016373,2]
[394464175,1763605837628,-500.0,0.00016373,2]
[394464176,1763605837636,-505.75054514,0.00016373,2]
[394464177,1763605837645,-500.0,0.00016373,2]
[394464178,1763605837654,-178.60258406,0.00016373,2]
[394464179,1763605837663,-312.5750897,0.00016373,2]
[394464180,1763605837673,-500.0,0.00016373,2]
[394464181,1763605837683,-275.65599069,0.00016377,2]
[394464182,1763605837692,-150.0,0.000164,2]
[394464183,1763605837701,-150.0,0.00016425,2]
[394464184,1763605837710,-5111.7551298,0.00016431,2]
[394464185,1763605837720,-22291.7232377,0.00016431,2]
[394464186,1763605837729,-20037.5043842,0.00016431,2]
[394464187,1763605837738,-299016.9569659,0.00016431,2]
[394464188,1763605837748,-150.0,0.00016477,2]
[394464189,1763605837758,-150.0,0.000165,2]
[394464190,1763605837767,-150.0,0.000165,2]
[394464191,1763605837776,-150.0,0.000165,2]
[394464192,1763605837787,-1829.0706,0.000165,2]
[394464193,1763605837796,-150.0,0.00016527,2]
[394464194,1763605837805,-15313.0393,0.00016569,2]
[394464195,1763605837814,-3526.9801,0.00016569,2]
[394464196,1763605837823,-234.94,0.00016569,2]
[394464197,1763605837832,-1000.0,0.00016571,2]
[394464198,1763605837842,-772.7353,0.00016571,2]
[394464199,1763605837851,-2859.65073388,0.00016571,2]
[394464200,1763605837860,-667.08759612,0.00016571,2]
[394464201,1763605837870,-150.0,0.000166,2]
[394464202,1763605837879,-150.0,0.00016615,2]
[394464203,1763605837888,-1829.07061,0.0001663,2]
[394464204,1763605837897,-2641.7731,0.00016631,2]
[394464205,1763605837906,-150.0,0.0001665,2]
[394464206,1763605837916,-1214.72972884,0.00016659,2]
[394464207,1763605837926,-225.9382837,0.00016668,2]
[394464208,1763605837935,-500.0,0.00016668,2]
[394464209,1763605837945,-361.80804733,0.00016668,2]
[394464210,1763605837955,-500.0,0.00016668,2]
[394464211,1763605837964,-500.0,0.00016668,2]
[394464212,1763605837973,-500.0,0.00016668,2]
[394464213,1763605837982,-500.0,0.00016668,2]
[394464214,1763605837991,-500.0,0.00016668,2]
[394464215,1763605838000,-328.12621007,0.00016668,2]
[394464216,1763605838009,-500.0,0.00016668,2]
[394464217,1763605838018,-561.89106333,0.00016668,2]
[394464218,1763605838027,-323.12274501,0.00016668,2]
[394464219,1763605838036,-2251.5798994,0.00016669,2]
[394464220,1763605838046,-343624.8111249,0.00016669,2]
[394464221,1763605838056,-272.38877776,0.00016671,2]
[394464222,1763605838065,-184.7268687,0.00016671,2]
[394464223,1763605838075,-229.78621618,0.00016673,2]
[394464224,1763605838084,-320.01819701,0.00016673,2]
[394464225,1763605838094,-500.0,0.00016673,2]
[394464226,1763605838103,-500.0,0.00016673,2]
[394464227,1763605838113,-500.0,0.00016673,2]
[394464228,1763605838121,-500.0,0.00016673,2]
[394464229,1763605838131,-501.79770459,0.00016673,2]
[394464230,1763605838140,-500.0,0.00016673,2]
[394464231,1763605838149,-501.26089656,0.00016673,2]
[394464232,1763605838163,-500.0,0.00016673,2]
[394464233,1763605838174,-504.28547365,0.00016673,2]
[394464234,1763605838184,-500.0,0.00016673,2]
[394464235,1763605838196,-500.0,0.00016673,2]
[394464236,1763605838206,-275.03829901,0.00016673,2]
[394464237,1763605838215,-500.85116854,0.00016673,2]
[394464238,1763605838224,-190.19542518,0.00016673,2]
[394464239,1763605838234,-500.0,0.00016673,2]
[394464240,1763605838243,-500.0,0.00016673,2]
[394464241,1763605838252,-500.0,0.00016673,2]
[394464242,1763605838262,-430.97913633,0.00016673,2]
[394464243,1763605838271,-500.0,0.00016673,2]
[394464244,1763605838280,-164.47000534,0.00016673,2]
[394464245,1763605838290,-500.0,0.00016673,2]
[394464246,1763605838299,-500.0,0.00016673,2]
[394464247,1763605838310,-500.0,0.00016673,2]
[394464248,1763605838319,-500.0,0.00016673,2]
[394464249,1763605838327,-500.0,0.00016673,2]
[394464250,1763605838337,-150.0,0.00016691,2]
[394464251,1763605838346,-1209.94,0.000167,2]
[394464252,1763605838355,-348.57,0.000167,2]
[394464253,1763605838364,-150.0,0.000167,2]
[394464254,1763605838374,-177.45,0.000167,2]
[394464255,1763605838383,-1209.94,0.000167,2]
[394464256,1763605838393,-301.32,0.000167,2]
[394464257,1763605838402,-150.0,0.000167,2]
[394464258,1763605838411,-2419.88,0.000167,2]
[394464259,1763605838420,-177.45,0.000167,2]
[394464260,1763605838430,-198.41,0.000167,2]
[394464261,1763605838439,-150.0,0.000167,2]
[394464262,1763605838449,-150.74,0.000167,2]
[394464263,1763605838457,-150.0,0.000167,2]
[394464264,1763605838466,-1190.42,0.000167,2]
[394464265,1763605838475,-301.22,0.000167,2]
[394464266,1763605838486,-174.44,0.000167,2]
[394464267,1763605838496,-169.55,0.000167,2]
[394464268,1763605838505,-441.18,0.000167,2]
[394464269,1763605838515,-1209.94,0.000167,2]
[394464270,1763605838524,-177.45,0.000167,2]
[394464271,1763605838533,-150.0,0.000167,2]
[394464272,1763605838542,-177.45,0.000167,2]
[394464273,1763605838551,-177.45,0.000167,2]
[394464274,1763605838560,-177.45,0.000167,2]
[394464275,1763605838569,-151.88,0.000167,2]
[394464276,1763605838579,-339.1,0.000167,2]
[394464277,1763605838588,-190.7,0.00016712,2]
[394464278,1763605838598,-177.45,0.00016712,2]
[394464279,1763605838607,-177.45,0.00016712,2]
[394464280,1763605838615,-150.0,0.00016712,2]
[394464281,1763605838625,-177.45,0.00016712,2]
[394464282,1763605838634,-177.45,0.00016712,2]
[394464283,1763605838643,-177.45,0.00016712,2]
[394464284,1763605838652,-2859.65073388,0.00016719,2]
[394464285,1763605838662,-500.0,0.0001673,2]
[394464286,1763605838671,-39528.45099409,0.00016731,2]
[394464287,1763605838682,-150.0,0.00016754,2]
[394464288,1763605838692,-150.13,0.00016789,2]
[394464289,1763605838702,-500.0,0.00016799,2]
[394464290,1763605838721,-169.55,0.000168,2]
[394464291,1763605838731,-169.55,0.000168,2]
[394464292,1763605838741,-1248.28,0.000168,2]
[394464293,1763605838750,-177.45,0.000168,2]
[394464294,1763605838760,-182.16,0.000168,2]
[394464295,1763605838770,-911.02,0.000168,2]
[394464296,1763605838779,-354.9,0.000168,2]
[394464297,1763605838788,-177.45,0.000168,2]
[394464298,1763605838797,-152.32,0.000168,2]
[394464299,1763605838807,-1978.7,0.000168,2]
[394464300,1763605838816,-1209.94,0.000168,2]
[394464301,1763605838826,-150.0,0.000168,2]
[394464302,1763605838836,-833.56,0.000168,2]
[394464303,1763605838847,-177.45,0.000168,2]
[394464304,1763605838857,-354.9,0.000168,2]
[394464305,1763605838866,-150.0,0.000168,2]
[394464306,1763605838876,-2419.06,0.000168,2]
[394464307,1763605838886,-177.45,0.000168,2]
[394464308,1763605838896,-833.74,0.000168,2]
[394464309,1763605838906,-300.0,0.000168,2]
[394464310,1763605838916,-177.45,0.000168,2]
[394464311,1763605838927,-169.55,0.000168,2]
[394464312,1763605838937,-150.0,0.000168,2]
[394464313,1763605838947,-150.0,0.000168,2]
[394464314,1763605838957,-377.01,0.000168,2]
[394464315,1763605838967,-150.0,0.000168,2]
[394464316,1763605838977,-150.0,0.000168,2]
[394464317,1763605838988,-150.0,0.000168,2]
[394464318,1763605838998,-242.44889093,0.0001683,2]
[394464319,1763605839008,-150.0,0.00016855,2]
[394464320,1763605839018,-338.00338836,0.00016866,2]
[394464321,1763605839027,-2859.65073388,0.00016866,2]
[394464322,1763605839036,-150.0,0.00016875,2]
[394464323,1763605839046,-1829.07061,0.0001688,2]
[394464324,1763605839056,-150.0,0.00016892,2]
[394464325,1763605839069,-1000.0,0.00016921,2]
[394464326,1763605839079,-1000.0,0.00016921,2]
[394464327,1763605839089,-195.0,0.0001695,2]
[394464328,1763605839099,-169.45,0.00016969,2]
[394464329,1763605839109,-850.76,0.00016999,2]
[394464330,1763605839119,-500.0,0.00016999,2]
[394464331,1763605839129,-150.0,0.00017,2]
[394464332,1763605839139,-100224.62787951,0.00017,2]
[394464333,1763605839149,-4677.85467025,0.00017,2]
[394464334,1763605839159,-250.0,0.00017,2]
[394464335,1763605839170,-151.0,0.00017,2]
[394464336,1763605839182,-151.0,0.00017,2]
[394464337,1763605839192,-201.948217,0.00017,2]
[394464338,1763605839202,-151.0,0.00017,2]
[394464339,1763605839212,-151.0,0.00017,2]
[394464340,1763605839223,-151.0,0.00017,2]
[394464341,1763605839232,-338.00338836,0.00017013,2]
[394464342,1763605839242,-2859.65073388,0.00017014,2]
[394464343,1763605839253,-150.0,0.00017018,2]
[394464344,1763605839266,-150.0,0.00017031,2]
[394464345,1763605839276,-339.62952102,0.00017051,2]
[394464346,1763605839285,-195.0,0.00017058,2]
[394464347,1763605839294,-195.0,0.00017071,2]
[394464348,1763605839304,-150.0,0.000171,2]
[394464349,1763605839313,-150.0,0.000171,2]
[394464350,1763605839324,-150.0,0.000171,2]
[394464351,1763605839333,-150.0,0.000171,2]
[394464352,1763605839343,-195.0,0.00017106,2]
[394464353,1763605839352,-195.0,0.00017109,2]
[394464354,1763605839362,-1829.07061,0.0001713,2]
[394464355,1763605839372,-300.0,0.00017133,2]
[394464356,1763605839381,-338.00338836,0.00017161,2]
[394464357,1763605839391,-2859.65073388,0.00017162,2]
[394464358,1763605839401,-150.0,0.00017169,2]
[394464359,1763605839411,-150.0,0.00017182,2]
[394464360,1763605839421,-150.0,0.000172,2]
[394464361,1763605839431,-1000.0,0.00017221,2]
[394464362,1763605839599,-1000.0,0.00017221,2]
[394464363,1763605839633,-1000.0,0.00017221,2]
[394464364,1763605839642,-301.74257607,0.00017221,2]
[394464365,1763605839651,-501.04689387,0.00017221,2]
[394464366,1763605839660,-500.0,0.00017221,2]
[394464367,1763605839669,-870.772333,0.00017221,2]
[394464368,1763605839679,-641.36723282,0.00017221,2]
[394464369,1763605839688,-1000.0,0.00017221,2]
[394464370,1763605839697,-500.0,0.00017221,2]
[394464371,1763605839706,-500.0,0.00017221,2]
[394464372,1763605839715,-1000.0,0.00017221,2]
[394464373,1763605839724,-1107.71724465,0.00017221,2]
[394464374,1763605839733,-1000.0,0.00017221,2]
[394464375,1763605839742,-1000.0,0.00017221,2]
[394464376,1763605839751,-218.75591944,0.0001725,2]
[394464377,1763605839760,-151.0,0.00017281,2]
[394464378,1763605839770,-2000.0,0.000173,2]
[394464379,1763605839779,-152.64,0.000173,2]
[394464380,1763605839792,-150.0,0.00017308,2]
[394464381,1763605839801,-338.00338836,0.00017309,2]
[394464382,1763605839811,-2859.65073388,0.00017309,2]
[394464383,1763605839822,-150.0,0.00017325,2]
[394464384,1763605839834,-150.0,0.00017345,2]
[394464385,1763605839845,-1829.07061,0.0001738,2]
[394464386,1763605839854,-195.0,0.00017384,2]
[394464387,1763605839863,-195.0,0.00017391,2]
[394464388,1763605839873,-150.0,0.000174,2]
[394464389,1763605839882,-150.0,0.000174,2]
[394464390,1763605839891,-150.0,0.000174,2]
[394464391,1763605839901,-150.0,0.000174,2]
[394464392,1763605839910,-150.0,0.000174,2]
[394464393,1763605839920,-168.0,0.00017402,2]
[394464394,1763605839929,-166.66,0.00017434,2]
[394464395,1763605839938,-150.0,0.00017446,2]
[394464396,1763605839947,-338.00338836,0.00017457,2]
[394464397,1763605839956,-165.19016754,0.00017457,2]
[394464398,1763605839965,-2859.65073388,0.00017457,2]
[394464399,1763605839974,-205.0,0.00017465,2]
[394464400,1763605839983,-1500.0,0.00017468,2]
[394464401,1763605839995,-1051.60515512,0.00017468,2]
[394464402,1763605840004,-150.0,0.00017509,2]
[394464404,1763605840013,-354.9,0.00017534,2]
[394464406,1763605840027,-354.9,0.00017534,2]
[394464407,1763605840047,-150.0,0.0001755,2]
[394464408,1763605840065,-195.0,0.0001756,2]
[394464409,1763605840074,-166.67,0.00017563,2]
[394464410,1763605840083,-608.31,0.00017565,2]
[394464411,1763605840092,-1000.0,0.00017582,2]
[394464412,1763605840101,-150.0,0.00017585,2]
[394464413,1763605840110,-822.0,0.00017595,2]
[394464414,1763605840119,-1600.0,0.00017595,2]
[394464415,1763605840127,-1276.0,0.00017595,2]
[394464416,1763605840136,-799.021,0.00017595,2]
[394464417,1763605840145,-910.627,0.00017595,2]
[394464418,1763605840155,-1198.197,0.00017595,2]
[394464419,1763605840164,-609.784,0.00017595,2]
[394464420,1763605840173,-1319.0,0.00017595,2]
[394464421,1763605840182,-3452.745,0.00017595,2]
[394464422,1763605840194,-195.0,0.00017596,2]
[394464423,1763605840204,-150.0,0.000176,2]
[394464424,1763605840213,-338.00338836,0.00017604,2]
[394464425,1763605840222,-2859.65073388,0.00017605,2]
[394464426,1763605840233,-195.0,0.00017621,2]
[394464427,1763605840242,-1829.07061,0.0001763,2]
[394464428,1763605840250,-150.0,0.00017673,2]
[394464429,1763605840261,-165.19016754,0.00017679,2]
[394464430,1763605840270,-150.0,0.000177,2]
[394464431,1763605840279,-150.0,0.000177,2]
[394464432,1763605840288,-150.0,0.000177,2]
[394464433,1763605840297,-420.0,0.00017707,2]
[394464434,1763605840307,-420.0,0.00017707,2]
[394464435,1763605840316,-420.0,0.00017707,2]
[394464436,1763605840325,-232.0,0.00017707,2]
[394464437,1763605840334,-150.0,0.00017723,2]
[394464438,1763605840343,-150.0,0.00017728,2]
[394464439,1763605840352,-260.0,0.00017728,2]
[394464440,1763605840361,-210.0,0.00017728,2]
[394464441,1763605840370,-250.0,0.00017728,2]
[394464442,1763605840379,-208.723,0.00017728,2]
[394464443,1763605840388,-218.8,0.00017728,2]
[394464444,1763605840397,-153.852,0.00017728,2]
[394464445,1763605840406,-150.0,0.00017728,2]
[394464446,1763605840415,-189.379,0.00017728,2]
[394464447,1763605840425,-162.536,0.00017728,2]
[394464448,1763605840434,-210.41,0.00017728,2]
[394464449,1763605840444,-266.384,0.00017728,2]
[394464450,1763605840453,-222.262,0.00017728,2]
[394464451,1763605840462,-338.00338836,0.00017752,2]
[394464452,1763605840471,-2859.65073388,0.00017752,2]
[394464453,1763605840481,-1500.0,0.00017768,2]
[394464454,1763605840490,-519.70400412,0.00017768,2]
[394464455,1763605840499,-1500.0,0.00017768,2]
[394464456,1763605840508,-505.36348195,0.00017768,2]
[394464457,1763605840517,-1500.0,0.00017768,2]
[394464458,1763605840527,-1500.0,0.00017768,2]
[394464459,1763605840536,-1500.0,0.00017768,2]
[394464460,1763605840545,-150.0,0.00017775,2]
[394464461,1763605840554,-1680.0,0.00017796,2]
[394464462,1763605840563,-150.0,0.000178,2]
[394464463,1763605840573,-150.12675746,0.00017819,2]
[394464464,1763605840582,-2500.0,0.00017819,2]
[394464465,1763605840591,-250.0,0.00017819,2]
[394464466,1763605840599,-300.0,0.00017819,2]
[394464467,1763605840609,-2690.64356047,0.00017819,4]
[394464468,1763605840617,-193.6806915,0.00017819,2]
[394464469,1763605840627,-150.83381148,0.00017819,2]
[394464470,1763605840636,-254.52711841,0.00017819,2]
[394464471,1763605840645,-300.0,0.00017819,2]
[394464472,1763605840654,-300.0,0.00017819,2]
[394464473,1763605840663,-300.0,0.00017819,2]
[394464474,1763605840672,-250.0,0.00017819,2]
[394464475,1763605840681,-346.0695808,0.00017819,2]
[394464476,1763605840690,-2500.0,0.0001782,2]
[394464477,1763605840699,-300.0,0.0001782,2]
[394464478,1763605840708,-354.35225853,0.0001782,2]
[394464479,1763605840717,-195.0,0.00017834,2]
[394464480,1763605840726,-150.0,0.00017836,2]
[394464481,1763605840736,-150.0,0.00017862,2]
[394464482,1763605840745,-169.45,0.00017862,2]
[394464483,1763605840755,-195.0,0.00017899,2]
[394464484,1763605840764,-179.96414648,0.000179,3]
[394464485,1763605840772,-338.00338836,0.000179,2]
[394464486,1763605840781,-165.19016754,0.000179,2]
[394464487,1763605840790,-1011.0,0.000179,2]
[394464488,1763605840799,-1600.82655175,0.000179,2]
[394464489,1763605840808,-2859.65073388,0.000179,2]
[394464490,1763605840817,-216.89755253,0.000179,2]
[394464491,1763605840826,-195.0,0.0001797,2]
[394464492,1763605840835,-160.73608923,0.00017973,2]
[394464493,1763605840844,-181.63155506,0.00017973,2]
[394464494,1763605840854,-600.43448404,0.00017973,2]
[394464495,1763605840863,-500.0,0.00017973,2]
[394464496,1763605840872,-500.0,0.00017973,2]
[394464497,1763605840881,-500.0,0.00017973,2]
[394464498,1763605840890,-500.0,0.00017973,2]
[394464499,1763605840901,-500.0,0.00017973,2]
[394464500,1763605840910,-500.0,0.00017973,2]
[394464501,1763605840919,-503.86976296,0.00017973,2]
[394464502,1763605840929,-500.0,0.00017973,2]
[394464503,1763605840938,-500.0,0.00017973,2]
[394464504,1763605840947,-500.0,0.00017973,2]
[394464505,1763605840957,-500.0,0.00017973,2]
[394464506,1763605840966,-500.0,0.00017973,2]
[394464507,1763605840975,-500.60845142,0.00017973,2]
[394464508,1763605840984,-500.0,0.00017973,2]
[394464509,1763605840993,-501.23436494,0.00017973,2]
[394464510,1763605841002,-572.12173873,0.00017973,2]
[394464511,1763605841011,-500.0,0.00017973,2]
[394464512,1763605841021,-151.0,0.00017973,2]
[394464513,1763605841030,-151.0,0.00017973,2]
[394464514,1763605841039,-151.0,0.0001798,2]
[394464515,1763605841048,-151.0,0.0001798,2]
[394464516,1763605841058,-1214.72972884,0.0001799,2]
[394464517,1763605841068,-1214.72972884,0.0001799,2]
[394464518,1763605841078,-500.0,0.00017998,2]
[394464519,1763605841089,-300.0,0.00017999,2]
[394464520,1763605841099,-151.0,0.00017999,2]
[394464521,1763605841109,-850.76,0.00017999,2]
[394464522,1763605841118,-850.76,0.00017999,2]
[394464523,1763605841128,-850.76,0.00017999,2]
[394464524,1763605841138,-850.76,0.00017999,2]
[394464525,1763605841148,-850.76,0.00017999,2]
[394464526,1763605841157,-850.76,0.00017999,2]
[394464527,1763605841167,-850.76,0.00017999,2]
[394464528,1763605841176,-850.76,0.00017999,2]
[394464529,1763605841189,-850.76,0.00017999,2]
[394464530,1763605841199,-850.76,0.00017999,2]
[394464531,1763605841210,-850.76,0.00017999,2]
[394464532,1763605841220,-850.76,0.00017999,2]
[394464533,1763605841231,-850.76,0.00017999,2]
[394464534,1763605841241,-850.76,0.00017999,2]
[394464535,1763605841250,-850.76,0.00017999,2]
[394464536,1763605841260,-850.76,0.00017999,2]
[394464537,1763605841270,-850.76,0.00017999,2]
[394464538,1763605841280,-850.76,0.00017999,2]
[394464539,1763605841289,-850.76,0.00017999,2]
[394464540,1763605841299,-850.97118208,0.00017999,2]
[394464541,1763605841309,-507.97085936,0.00017999,2]
[394464542,1763605841318,-300.0,0.00017999,2]
[394464543,1763605841328,-500.0,0.00017999,2]
[394464544,1763605841337,-500.0,0.00017999,2]
[394464545,1763605841346,-500.0,0.00017999,2]
[394464546,1763605841356,-500.0,0.00017999,2]
[394464547,1763605841368,-500.0,0.00017999,2]
[394464548,1763605841378,-500.0,0.00017999,2]
[394464549,1763605841389,-500.0,0.00017999,2]
[394464550,1763605841400,-500.0,0.00017999,2]
[394464551,1763605841409,-500.0,0.00017999,2]
[394464552,1763605841418,-630.01716056,0.00017999,2]
[394464553,1763605841427,-171.33237478,0.00017999,2]
[394464554,1763605841436,-318.77592893,0.00017999,2]
[394464555,1763605841446,-213.64141058,0.00017999,2]
[394464556,1763605841455,-2726.0,0.00018,2]
[394464557,1763605841465,-163.00151995,0.00018,2]
[394464558,1763605841474,-157.69374705,0.00018,2]
[394464559,1763605841483,-160.99721295,0.00018,2]
[394464560,1763605841493,-165.78798586,0.00018,2]
[394464561,1763605841503,-152.75012698,0.00018,2]
[394464562,1763605841512,-159.5094625,0.00018,2]
[394464563,1763605841523,-158.71690319,0.00018,2]
[394464564,1763605841532,-155.40496644,0.00018,2]
[394464565,1763605841543,-157.52172287,0.00018,2]
[394464566,1763605841553,-5031032.30519645,0.00018,2]
[394464567,1763605841574,-1218.99099617,0.00018,2]
[394464568,1763605841796,-184.7268687,0.000168,2]
[394464569,1763605841806,-413.27242436,0.00017595,2]
[394464570,1763605841817,-165.05557564,0.00017595,2]
[394464571,1763605841827,-582.18996636,0.00018,2]
[394464572,1763605841838,-1233.17956466,0.00018,2]
[394464580,1763605843312,-169.55,0.000167,2]
[394464581,1763605843322,-5565.14102602,0.00018,2]
[394464582,1763605844159,-14153.42145628,0.00018,2]
[394464583,1763605845692,-2080.26020366,0.000179,2]
[394464584,1763605845702,-97075.69572176,0.00018,2]
[394464585,1763605846010,-1402.30004399,0.00018,2]
[394464607,1763605846388,520.70881122,0.0004203,120]
[394464608,1763605919351,600.0,0.000171,6]
[394464609,1763605921461,1300.0,0.000172,6]
[394464610,1763605921847,201.0,0.00032877,120]
[394464611,1763605923540,1900.0,0.000173,6]
[394464612,1763605925631,2600.0,0.000174,6]
[394464613,1763605934826,500.0,0.0004203,30]
[394464614,1763605934953,500.0,0.0004203,120]
[394464615,1763605935195,500.0,0.0004203,120]
[394464616,1763605935420,503.40909369,0.0004203,120]
[394464617,1763605997081,500.0,0.00042072,30]
[394464618,1763605997661,500.0,0.00042072,30]
[394464619,1763605997916,500.0,0.00042072,30]
[394464620,1763605998169,500.0,0.00042072,30]
[394464621,1763605998460,500.0,0.00042072,30]
[394464622,1763605998729,500.0,0.00042072,30]
[394464623,1763605998980,507.69069851,0.00042072,30]
[394464646,1763606258102,324.61692497,0.00016073,2]
[394464648,1763606263122,324.61692494,0.00016093,2]
[394464661,1763606353624,151.0,0.00042072,40]
[394464662,1763606353957,151.0,0.00042072,40]
[394464663,1763606354246,151.0,0.00042072,40]
[394464664,1763606354889,151.0,0.00042072,40]
[394464665,1763606355186,151.0,0.00042072,40]
[394464666,1763606355484,151.0,0.00042072,40]
[394464667,1763606355794,151.0,0.00042072,40]
[394464668,1763606356086,190.164081,0.00042072,40]
[394464669,1763606362752,161.92,0.00016,2]
[394464672,1763606368291,324.61692494,0.00016073,2]
[394464674,1763606373643,151.0,0.00042072,40]
[394464675,1763606375642,237.607548,0.00042072,40]
[394464676,1763606377848,250.0,0.00015753,2]
[394464678,1763606424659,168.288613,0.00042078,40]
[394464679,1763606433366,151.0,0.00042078,30]
[394464680,1763606433659,296.763314,0.00042078,30]
[394464681,1763606463423,324.61692494,0.00016073,2]
[394464682,1763606476592,4055.54572691,0.00042078,30]
[394464683,1763606492546,968.827,0.00015946,2]
[394464684,1763606492574,163.20568317,0.00015946,2]
[394464686,1763606548569,378.26628983,0.00016072,2]
[394464687,1763606553592,378.26628979,0.00016092,2]
[394464688,1763606557728,155.125753,0.00042078,40]
[394464689,1763606633818,178.38,0.00015735,2]
[394464690,1763606658717,477.22806666,0.00016072,2]
[394464691,1763606663715,477.22806665,0.00016092,2]
[394464695,1763606768844,318.15204445,0.00016072,2]
[394464696,1763606773837,318.15204443,0.0001609,2]
[394464697,1763606818596,642.66,7.71e-05,2]
[394464698,1763606819014,642.66,8.116e-05,2]
[394464699,1763606819260,642.66,8.522e-05,2]
[394464700,1763606819478,642.66,8.927e-05,2]
[394464701,1763606819678,642.66,9.333e-05,2]
[394464702,1763606819880,642.66,9.739e-05,2]
[394464703,1763606820091,108.8692191,0.00010145,2]
[394464704,1763606820114,533.7907809,0.00010145,2]
[394464705,1763606820300,642.66,0.00010551,2]
[394464706,1763606820700,642.66,0.00010956,2]
[394464707,1763606820914,642.66,0.00011362,2]
[394464708,1763606821292,642.66,0.00011768,2]
[394464709,1763606821335,642.66,0.00012174,2]
[394464710,1763606821699,642.66,0.00012579,2]
[394464711,1763606821900,642.66,0.00012985,2]
[394464712,1763606822129,642.66,0.00013391,2]
[394464713,1763606822332,642.66,0.00013797,2]
[394464714,1763606822541,642.66,0.00014203,2]
[394464715,1763606822739,642.66,0.00014608,2]
[394464716,1763606822972,642.66,0.00015014,2]
[394464717,1763606823192,642.66,0.0001542,2]
[394464718,1763606831464,300.0,0.000159,5]
[394464719,1763606833559,600.0,0.000169,6]